Workbook

Sheet Hinweise
A1: Hinweise:
A3: - | B3: Positionen mit 0,00€ nicht löschen, sondern bestehen lassen -> es könnte sein das diese Posten in den folgenden Jahren wieder benötigt werden und auch damit nicht in Vergessenheit gerät was es mal gab
A7: - | B7: Die Summe der fortgeschriebenen finanziellen Mittel müssen immer manuell ins Deckblatt des nächsten Haushaltsjahres eingetragen werden.
A8: - | B8: Die Auflistung der fortgeschriebenen finanziellen Mittel im Detailblatt 1 und in den einzelnen Referaten dient als Übersicht, welcher Betrag übernommen werden muss.
A10: - | B10: Somit bildet die Spalte "Übertrag ins nächste HH-Jahr" des jeweiligen Jahres das "Nachrangig verwendbares Vj..-Budget" des nächsten Jahres.
A11: - | B11: Die Spalte "Zurückführung" errechnet sich aus dem nicht verwendeten "Nachrangigen Vj..-Budget" und gilt immer für das nächste Jahr.
A15: - | B15: WICHTIG:
B16: Der Haushaltsplan des Vorjahres, welcher maßgeblich für die Zahlen des neu geplanten Haushaltsplans ist, muss nach Abschluss des ersten Quartals endgültig auf die IST-Werte angepasst werden.
B17: Daraus sollte sich der erste Nachtragshaushalt ergeben, woraus sich wiederum eine Anpassung des Semesterbeitrags für das WS ergeben könnte.
B19: Für die Ermittlung der angeordneten Vermögensänderung des StuRa werden die geplanten Einnahmen als Obergrenze zu Grunde gelegt. Als Einnahmen werden dabei die vom Deckblatt berücksichtigt.
B20: Die Einnahmen aus der Selbstverwaltung, die Zinsen und die Beitragseinnahmen der Studierenden abzüglich der Zurückführung an Studierende.
B21: Den daraus ermittelten Einnahmen werden die noch verfügbaren finanziellen Mittel entgegengestellt, sind diese größer als die geplanten Einnahmen, so ergibt sich die Vermögensänderung auf der Einnahmenseite.
B22: Für die Ermittlung der angeordneten Vermögensänderung des StuRa auf der Ausgabenseite, werden die verfügbaren finanziellen Mittel mit der Mindestreserve verglichen.
B23: Sind diese kleiner als die Mindestreserve, so bildet die Differenz den Betrag der Vermögensänderung.

Sheet Deckblatt
A1: Haushaltsplan 2021 Studierendenschaft HTW Dresden | C1: Einnahmen | F1: Ausgaben
C2: PLAN | D2: IST | E2: SALDO | F2: PLAN | G2: IST | H2: SALDO
A3: Selbstverwaltung | C3: ='Detailblatt I'!J55 -> 13283.33333 | D3: ='Detailblatt I'!K55 -> 11030.6 | E3: =D3-C3 -> -2252.733333 | F3: ='Detailblatt I'!M55 -> 215426 | G3: ='Detailblatt I'!N55 -> 136229.76 | H3: =(F3-G3) -> 79196.24
A4: Beitragseinnahmen der Studierenden | C4: ='Detailblatt II'!F17 -> 160800 | D4: ='Detailblatt II'!G17 -> 160691.34 | E4: =D4-C4 -> -108.66 | F4: ='Detailblatt II'!I17 -> 0 | G4: ='Detailblatt II'!J17 -> 0 | H4: =(F4-G4) -> 0
A5: Zinsen | C5: ='Detailblatt II'!F21 -> 0 | D5: ='Detailblatt II'!G21 -> 0 | E5: =D5-C5 -> 0 | F5: ='Detailblatt II'!I21 -> 0 | G5: ='Detailblatt II'!J21 -> 0 | H5: =(F5-G5) -> 0
A6: Entnahme (=Einnahme) Ansparen (=Ausgabe) | B6: von Vermögen | C6: =IF((Beitragsermittlung!B16)-('Detailblatt II'!F15+'Detailblatt II'!F16)>0,(Beitragsermittlung!B16)-('Detailblatt II'!F15+'Detailblatt II'!F16),0) -> 6742.666667 | D6: 0 | E6: =D6-C6 -> -6742.666667 | F6: 0 | G6: ='Detailblatt II'!G22 -> 0 | H6: =(F6-G6) -> 0
A7: angeordnete Vermögensänderung lt. FO | C7: =Beitragsermittlung!B14 -> 0 | E7: =D7-C7 -> 0 | F7: ='Detailblatt II'!I20 -> 0 | H7: =(F7-G7) -> 0
A8: Zurückführung an Studierende (StuRa) | C8: 34600 | D8: =C8 -> 34600 | E8: =D8-C8 -> 0
A10: Gesamt: | C10: =SUM(C3:C9) -> 215426 | D10: =SUM(D3:D9) -> 206321.94 | E10: =SUM(E3:E9) -> -9104.06 | F10: =SUM(F3:F9) -> 215426 | G10: =SUM(G3:G9) -> 136229.76 | H10: =SUM(H3:H9) -> 79196.24
A11: Berechnung des Semesterbeitrag:
B12: Planausgaben: | C12: =F10 -> 215426 | E12: In Zeile F6 (Ansparung) manuell einzutragen: | H12: =IF(Deckblatt!C10-Deckblatt!F10>0,Deckblatt!C10-Deckblatt!F10+F6,IF(C10=F10,"Haushaltsplan ist ausgeglichen!","Haushaltsplan ist nicht ausgeglichen!")) -> Haushaltsplan ist ausgeglichen!
A13: - | B13: Planeinnahmen: | C13: =C3+C5 -> 13283.33333
A14: - | B14: Zurückführung: | C14: =C8+C9 -> 34600
A15: - | B15: Vermögensänderung | C15: =C7 -> 0
A16: = | B16: Gesamt: | C16: =C12-C13-C14-C15-F6 -> 167542.6667
A17: / | B17: Beitragszahlungen/Jahr: | C17: ='Detailblatt II'!D15+('Detailblatt II'!D16/6*4) -> 7608
A18: = | B18: Stud./Semester: | C18: =IF((C16-'Detailblatt II'!F14)/Deckblatt!C17<0,0,(C16-'Detailblatt II'!F14)/Deckblatt!C17) -> 18.39414651 | D18: Anzusetzender Semesterbeitrag: | F18: =ROUND((C18*2),0)/2 -> 18.5

Sheet Beitragsermittlung
A1: Ermittlung des Beitrages in Bezug auf die angeordnete Vermögensänderung
A3: Geplante Einnahmen | B3: =Deckblatt!F10-Deckblatt!C8-Deckblatt!C9-Deckblatt!F6 -> 180826
A4: verfügbare finanzielle Mittel | B4: ='fortgeschr. Mittel+Konto'!D9 -> 103496.01
A5: Obergrenze finanzielle Mittel | B5: =IF(B3<B4,B3,B4) -> 103496.01
A7: Vorgesehene Vermögenssenkung wegen zu hoher verfügbarer finanzieller Mittel | B7: =IF(Beitragsermittlung!B4>Deckblatt!F10-Deckblatt!F6,Beitragsermittlung!B4-Beitragsermittlung!B5,0) -> 0
A8: Mindestreserve | B8: =Mindestreserve!D17 -> 102250
A9: (Verfügbare finanzielle Mittel nach Vermögensenkung) | B9: =B4-B7 -> 103496.01
A10: Untergrenze für verfügbare finanzielle Mittel durch Bemessung an der Mindestreserve wird erreicht | B10: =IF(B5<B8,B8,B5) -> 103496.01
A11: beabsichtigte Senkung der verfügbaren finanziellen Mittel | B11: =B4-B10 -> 0
A13: Obergrenze für verpflichtende Vermögenssenkung entgegen der (negativen) Erhebung von Beiträgen | B13: =IF(Beitragsermittlung!B11>(Deckblatt!F10-Deckblatt!F6-(Deckblatt!C3+Deckblatt!C5+Deckblatt!C8+Deckblatt!C9+'Detailblatt II'!F14)),Deckblatt!F10-Deckblatt!F6-(Deckblatt!C3+Deckblatt!C5+Deckblatt!C8+Deckblatt!C9+'Detailblatt II'!F14),Beitragsermittlung!B11) -> 0
A14: Vermögenssenkung wegen übermäßig verfügbarer finanzieller Mittel ohne negativem Semesterbeitrag | B14: =IF(B13<0,0,B13) -> 0
A16: restlich zu vereinnahmender Semesterbeitrag ab dem nächsten Sommersemester | B16: =(Deckblatt!F3+Deckblatt!F5+Deckblatt!F7+Deckblatt!F4)-(Deckblatt!C13+Deckblatt!C14+Deckblatt!C15+'Detailblatt II'!F14) -> 139942.6667

Sheet fortgeschr. Mittel+Konto
A1: Fortgeschriebene finanzielle Mittel + Bankkontostand | C1: Jahr - | D1: ='Detailblatt I'!F1 -> 2021
F2: Nr. | G2: voraussichtliche Ausgaben | I2: Saldo
B3: Position | C3: erstellt am: | D3: Saldo | F3: 1. | G3: Personal (Nov.+Dez. inkl. 13.Gehalt, ACON, Finanzamt) | I3: 0
B4: Bank-/Kassenbestand bei Haushaltsplanerstellung | D4: =2155.92+124+82.57+163812.02+60000+1462.39 -> 227636.9
A5: - | B5: abzgl. voraussichtliche Ausgaben | D5: =I24*(-1) -> -30574.45 | F5: 2. | G5: Finanzbeschlüsse aktuell noch nicht bezahlt in Summe | I5: 0
A6: - | B6: nachrangig verwendbares Vorjahresbudget | D6: ='Detailblatt I'!P55*(-1)-'Detailblatt I'!Q55*(-1) -> -31366.44
A7: - | B7: Zurückführung an Studierende gesamt | D7: =SUM(Deckblatt!C8:C9)*-1 -> -34600 | F7: 3. | G7: Schulungen/Konferenzen (KoSe) | I7: 0
A8: - | B8: Beitragseinnahmen anteilig WS 20/21 für 2021 | D8: ='Detailblatt II'!F14*-1 -> -27600 | F8: 4. | G8: voraussichtliche AE | I8: 0
A9: = | B9: verfügbare finanzielle Mittel | D9: =D4+D5+D6+D7+D8 -> 103496.01 | F9: 5. | G9: offene Härtefallanträge | I9: 0
F10: 6. | G10: Software-Abos (AGENDA etc.) | I10: 0
F11: 7. | G11: Kosten für Wartung (Drucker etc.) | I11: 0
F12: 8. | G12: Kontoführung | I12: 0
F13: 9. | G13: Kino in der HTW & Co. | I13: 0
F14: 10. | G14: Kosten für Wahlen | I14: 0
F15: 11. | G15: Kaffeebestellung(en) | I15: 0
F16: 12. | G16: Ersatz- & Neuanschaffung | I16: 0
F17: 13. | G17: wahrscheinlich noch zu beschließende Finanzanträge | I17: 0
F19: 14. | G19: Semesterticket Konto 1591 & 1592 | I19: 0
F21: 15. | G21: Konto 1704 | I21: 10842.82
F22: 16. | G22: Konto 1450 (-) | I22: -4736.56
F23: 17. | G23: Nothilfefonds saldiert | I23: 24468.19
F24: = | G24: Gesamtsumme: | I24: =SUM(I3:I23) -> 30574.45

Sheet Mindestreserve
A1: Mindestreserve | D1: Jahr - | E1: ='Detailblatt I'!F1 -> 2021 | F1: Berechnungsgrundlage ist die aktuelle Finanzordnung (FO)
G2: - alle vertraglich festgeschriebenen Vereinbarungen müssen durch die Kapitalreserve abgedeckt sein
A3: vertragliche Vereinbarungen | D3: Planausgaben
A4: Studentinnen- und Studentenrat
A5: Lohnkosten (Detailblatt I - Zelle M7) | D5: ='Detailblatt I'!M7 -> 100000
A6: …aktuell ohne Belegung…
A7: …aktuell ohne Belegung… | D7: ------
A8: Referat Finanzen
A9: Kontoführungsgebühren | D9: =Finanzen!G3 -> 600
A10: Buchhaltungssoftware AGENDA | D10: =Finanzen!G4 -> 1000
A11: …aktuell ohne Belegung… | D11: ------
A12: Referat Selbstverwaltung & Organisation
A13: Domains | D13: ='Studentische Verwaltung'!F4 -> 150
A14: laufende Kosten (Druck, Wartung) | D14: ='Studentische Verwaltung'!F15 -> 500
A15: …aktuell ohne Belegung… | D15: ------
A16: …aktuell ohne Belegung… | D16: ------
A17: Gesamt: | D17: =SUM(D5:E16) -> 102250

Sheet Detailblatt I
A1: Detailblatt I | E1: Jahr - | F1: 2021 | J1: Einnahmen | M1: Ausgaben | P1: nachrangig verwendbares Vj. Budget | Q1: davon verwendet | R1: Zuführung "Fortgeschr. finanz. Mittel" | S1: Übertrag ins nächste HH-Jahr
J2: PLAN | K2: IST | L2: SALDO | M2: PLAN | N2: IST | O2: SALDO
A3: Selbstverwaltung der Studentinnen- und Studentenschaft HTW Dresden
A4: Studentinnen- und Studentenrat
A5: Sachkontonr.
A6: 2749 | B6: Angestellte | C6: AAG | K6: 10806.6 | L6: =K6 -> 10806.6
A7: 4120 | C7: Gehälter | M7: 100000 | N7: 48404.73 | O7: =M7-SUM(N7:N12)+L6 -> 12781.25
A8: 4121 | C8: Lohnsteuer | N8: 17703.12
A9: 4170 | C9: Vermögenswirksame Leistungen | N9: 79.8
A10: 4130 | C10: gesetzl. sozial. Aufw. | N10: 31028.11
A11: 4138 | C11: Beitrag BG | N11: 278.84
A12: 4956 | C12: Lohnbüro | N12: 530.75
A13: 4110 | B13: (AE) Aufwandsentschädigungen | M13: 28000 | N13: 20992 | O13: =M13-N13 -> 7008
A14: 4640 | B14: Kaffee & Verpflegung | M14: 1200 | N14: 707.75 | O14: =M14-N14 -> 492.25
A15: 4670 | B15: Allgemeine Reisekosten (die keiner Veranstaltung zugeordnet sind) | M15: 800 | N15: 588 | O15: =M15-N15 -> 212
A16: 4909 | B16: Vorstand der Geschäftsführung | M16: 0 | N16: 0 | O16: =M16-N16 -> 0
A17: 4930 | B17: Büro- und Verbrauchsmaterialien | M17: 100 | N17: 55.69 | O17: =M17-N17 -> 44.31 | P17: 170 | Q17: =IF(O17<0,IF(P17>0,IF((O17*(-1))>P17,P17,O17*(-1)),0),0) -> 0 | R17: =IF(OR(Q17>P17,O17+P17<0),MAKRO1(),ROUNDDOWN(P17-Q17,-1)) -> 170 | S17: =IF(O17>0,ROUNDDOWN(O17,-1),0) -> 40
A18: 4943 | B18: Teilnahme Konferenzen | M18: 500 | N18: 151.5 | O18: =M18-N18 -> 348.5 | P18: 900 | Q18: =IF(O18<0,IF(P18>0,IF((O18*(-1))>P18,P18,O18*(-1)),0),0) -> 0 | R18: =IF(OR(Q18>P18,O18+P18<0),MAKRO1(),ROUNDDOWN(P18-Q18,-1)) -> 900 | S18: =IF(O18>0,ROUNDDOWN(O18,-1),0) -> 340
A19: 4944 | B19: Teilnahme Schulungen | M19: 250 | N19: 0 | O19: =M19-N19 -> 250 | P19: 500 | Q19: =IF(O19<0,IF(P19>0,IF((O19*(-1))>P19,P19,O19*(-1)),0),0) -> 0 | R19: =IF(OR(Q19>P19,O19+P19<0),MAKRO1(),ROUNDDOWN(P19-Q19,-1)) -> 500 | S19: =IF(O19>0,ROUNDDOWN(O19,-1),0) -> 250
A20: 4945 | B20: Durchführung Konferenzen | J20: 2000 | K20: =Konferenzen!D6 -> 0 | L20: =K20-J20 -> -2000 | M20: 2500 | N20: =Konferenzen!G6 -> 0 | O20: =M20-N20 -> 2500 | P20: 1500 | Q20: =Konferenzen!J6 -> 0 | R20: =Konferenzen!K6 -> 1500 | S20: =Konferenzen!L6 -> 500
A21: 4950 | B21: Rechts- und Beratungskosten | M21: 6000 | N21: 0 | O21: =M21-N21 -> 6000 | P21: 1170 | Q21: =IF(O21<0,IF(P21>0,IF((O21*(-1))>P21,P21,O21*(-1)),0),0) -> 0 | R21: =IF(OR(Q21>P21,O21+P21<0),MAKRO1(),ROUNDDOWN(P21-Q21,-1)) -> 1170 | S21: =IF(O21>0,ROUNDDOWN(O21,-1),0) -> 6000
A22: 4989 | B22: Ersatz- und Neuanschaffung | M22: 3000 | N22: 1401.99 | O22: =M22-N22 -> 1598.01 | P22: 1210 | Q22: =IF(O22<0,IF(P22>0,IF((O22*(-1))>P22,P22,O22*(-1)),0),0) -> 0 | R22: =IF(OR(Q22>P22,O22+P22<0),MAKRO1(),ROUNDDOWN(P22-Q22,-1)) -> 1210 | S22: =IF(O22>0,ROUNDDOWN(O22,-1),0) -> 1590
A23: Zwischensumme: | J23: =SUM(J6:J22) -> 2000 | K23: =SUM(K6:K22) -> 10806.6 | L23: =SUM(L6:L22) -> 8806.6 | M23: =SUM(M6:M22) -> 142350 | N23: =SUM(N6:N22) -> 121922.28 | O23: =SUM(O6:O22) -> 31234.32 | P23: =SUM(P17:P22) -> 5450 | Q23: =SUM(Q17:Q22) -> 0 | R23: =SUM(R17:R22) -> 5450 | S23: =SUM(S17:S22) -> 8720
A24: Referate
A25: 4960 | B25: Finanzen | J25: =Finanzen!D6 -> 0 | K25: =Finanzen!E6 -> 0 | L25: =K25-J25 -> 0 | M25: =Finanzen!G6 -> 1850 | N25: =Finanzen!H6 -> 1399.72 | O25: =M25-N25 -> 450.28
A26: 4961 | B26: Hochschulpolitik | J26: =Hochschulpolitik!C8 -> 0 | K26: =Hochschulpolitik!D8 -> 0 | L26: =K26-J26 -> 0 | M26: =Hochschulpolitik!F8 -> 850 | N26: =Hochschulpolitik!G8 -> 150 | O26: =M26-N26 -> 700 | P26: =Hochschulpolitik!I8 -> 700 | Q26: =Hochschulpolitik!J8 -> 0 | R26: =Hochschulpolitik!K8 -> 700 | S26: =Hochschulpolitik!L8 -> 700
A27: 4962 | B27: Internationales | J27: =Internationales!C6 -> 0 | K27: =Internationales!D6 -> 0 | L27: =K27-J27 -> 0 | M27: =Internationales!F6 -> 350 | N27: =Internationales!G6 -> 50 | O27: =M27-N27 -> 300 | P27: =Internationales!I6 -> 50 | Q27: =Internationales!J6 -> 0 | R27: =Internationales!K6 -> 50 | S27: =Internationales!L6 -> 50
A28: 4963 | B28: Kultur | J28: =Kultur!C14 -> 8933.333333 | K28: =Kultur!D14 -> 110 | L28: =K28-J28 -> -8823.333333 | M28: =Kultur!F14 -> 11150 | N28: =Kultur!G14 -> 744.1 | O28: =M28-N28 -> 10405.9 | P28: =Kultur!I14 -> 11040 | Q28: =Kultur!J14 -> 10.28 | R28: =Kultur!K14 -> 11020 | S28: =Kultur!L14 -> 10160
A29: 4964 | B29: Öffentlichkeitsarbeit | J29: =Öffentlichkeitsarbeit!C9 -> 750 | K29: =Öffentlichkeitsarbeit!D9 -> 60 | L29: =K29-J29 -> -690 | M29: =Öffentlichkeitsarbeit!F9 -> 2850 | N29: =Öffentlichkeitsarbeit!G9 -> 13.5 | O29: =M29-N29 -> 2836.5 | P29: =Öffentlichkeitsarbeit!I9 -> 1710 | Q29: =Öffentlichkeitsarbeit!J9 -> 0 | R29: =Öffentlichkeitsarbeit!K9 -> 1710 | S29: =Öffentlichkeitsarbeit!L9 -> 2580
A30: 4965 | B30: Qualitätsmanagement | J30: =Qualitätsmanagement!C6 -> 0 | K30: =Qualitätsmanagement!D6 -> 0 | L30: =K30-J30 -> 0 | M30: =Qualitätsmanagement!F6 -> 5000 | N30: =Qualitätsmanagement!G6 -> 4010.3 | O30: =M30-N30 -> 989.7 | P30: =Qualitätsmanagement!I6 -> 0 | Q30: =Qualitätsmanagement!J6 -> 0 | R30: =Qualitätsmanagement!K6 -> 0 | S30: =Qualitätsmanagement!L6 -> 730
A31: 4966 | B31: Soziales | J31: =Soziales!C8 -> 200 | K31: =Soziales!D8 -> 0 | L31: =K31-J31 -> -200 | M31: =Soziales!F8 -> 800 | N31: =Soziales!G8 -> 0 | O31: =M31-N31 -> 800 | P31: =Soziales!I8 -> 450 | Q31: =Soziales!J8 -> 0 | R31: =Soziales!K8 -> 450 | S31: =Soziales!L8 -> 550
A32: 4967 | B32: Sport | J32: =Sport!C11 -> 200 | K32: =Sport!D11 -> 0 | L32: =K32-J32 -> -200 | M32: =Sport!F11 -> 1850 | N32: =Sport!G11 -> 0 | O32: =M32-N32 -> 1850 | P32: =Sport!I11 -> 500 | Q32: =Sport!J11 -> 0 | R32: =Sport!K11 -> 500 | S32: =Sport!L11 -> 700
A33: 4968 | B33: Studium | J33: =Studium!C7 -> 0 | K33: =Studium!D7 -> 0 | L33: =K33-J33 -> 0 | M33: =Studium!F7 -> 250 | N33: =Studium!G7 -> 0 | O33: =M33-N33 -> 250 | P33: =Studium!I7 -> 550 | Q33: =Studium!J7 -> 0 | R33: =Studium!K7 -> 550 | S33: =Studium!L7 -> 0
A34: 4969 | B34: Studentische Selbstverwaltung & Organisation | J34: ='Studentische Verwaltung'!C16 -> 1200 | K34: ='Studentische Verwaltung'!D16 -> 54 | L34: =K34-J34 -> -1146 | M34: ='Studentische Verwaltung'!F16 -> 29626 | N34: ='Studentische Verwaltung'!G16 -> 2096.96 | O34: =M34-N34 -> 27529.04 | P34: ='Studentische Verwaltung'!I16 -> 2680 | Q34: ='Studentische Verwaltung'!J16 -> 633.28 | R34: ='Studentische Verwaltung'!K16 -> 2040 | S34: ='Studentische Verwaltung'!L16 -> 28150
A35: 4946 | B35: Personal | J35: =Personal!C20 -> 0 | K35: ='Studentische Verwaltung'!D17 -> 0 | L35: =K35-J35 -> 0 | M35: =Personal!F20 -> 5200 | N35: ='Studentische Verwaltung'!G17 -> 0 | O35: =M35-N35 -> 5200 | P35: =Personal!I20 -> 4950 | Q35: ='Studentische Verwaltung'!J17 -> 0 | R35: =Personal!K20 -> 4900 | S35: =Personal!L20 -> 4310
A36: ---- | B36: Ausschüsse des Studentinnen- und Studentenrates | J36: 0 | K36: 0 | L36: =K36-J36 -> 0 | M36: 0 | N36: 0 | O36: =M36-N36 -> 0
A37: ---- | B37: weitere Vertretungen | J37: 0 | K37: 0 | L37: =K37-J37 -> 0 | M37: 0 | N37: 0 | O37: =M37-N37 -> 0
A38: Zwischensumme: | J38: =SUM(J25:J37) -> 11283.33333 | K38: =SUM(K25:K37) -> 224 | L38: =SUM(L25:L37) -> -11059.33333 | M38: =SUM(M25:M37) -> 59776 | N38: =SUM(N25:N37) -> 8464.58 | O38: =SUM(O25:O37) -> 51311.42 | P38: =SUM(P26:P35) -> 22630 | Q38: =SUM(Q26:Q35) -> 643.56 | R38: =SUM(R26:R35) -> 21920 | S38: =SUM(S26:S35) -> 47930
A39: Ausschüsse der Studentinnen- und Studentenschaft
A40: ---- | B40: weitere Ausschüsse der Studentinnen- und Studentenschaft | M40: 0 | N40: 0 | O40: =M40-N40 -> 0
A41: ---- | B41: Wahlausschuss der Studentinnen- und Studentenschaft | M41: 0 | N41: 0 | O41: =M41-N41 -> 0
A42: 4941 | B42: (HFA) Härtefallausschuss der Studentinnen- & Studentenschaft | M42: 5000 | N42: 1447.6 | O42: =M42-N42 -> 3552.4
A43: Zwischensumme: | M43: =SUM(M40:M42) -> 5000 | N43: =SUM(N40:N42) -> 1447.6 | O43: =SUM(O40:O42) -> 3552.4
A45: Anzahl der Studierenden im: | F45: WiSe | G45: 21/22 | H45: SoSe | I45: 2021
A46: gesamt: | F46: 4700 | H46: 4200
A47: #4942 Absicherung Teilnahme BuFaTas lt. Finanzordnung: | I47: 0.5 | M47: 2000 | N47: 128.25 | O47: =M47-N47 -> 1871.75 | P47: 3930 | Q47: =IF(O47<0,IF(P47>0,IF((O47*(-1))>P47,P47,O47*(-1)),0),0) -> 0 | R47: =IF(OR(Q47>P47,O47+P47<0),MAKRO1(),ROUNDDOWN(P47-Q47,-1)) -> 3930 | S47: =IF(O47>0,ROUNDDOWN(O47,-1),0) -> 1870
A48: Zwischensumme: | M48: =SUM(M47:M47) -> 2000 | N48: =SUM(N47:N47) -> 128.25 | O48: =SUM(O47:O47) -> 1871.75 | P48: =SUM(P47) -> 3930 | Q48: =SUM(Q47) -> 0 | R48: =SUM(R47:R47) -> 3930 | S48: =SUM(S47) -> 1870
A49: Vertretungen der Studentinnen und Studenten
A50: ---- | B50: Vertretungen der Studentinnen und Studenten in der Hochschule | M50: 0 | N50: 0 | O50: =M50-N50 -> 0
A51: ---- | B51: Konferenz Sächsischer Studierendenschaft | M51: ='Detailblatt II'!I6 -> 2000 | N51: ='Detailblatt II'!J6 -> 1378.05 | O51: =M51-N51 -> 621.95
A52: ---- | B52: Interessenvertretungen der Studentinnen- und Studentenschaft | M52: ='Detailblatt II'!I12 -> 4300 | N52: ='Detailblatt II'!J12 -> 2889 | O52: =M52-N52 -> 1411
A53: ---- | B53: weitere Interessenvertetungen | M53: 0 | N53: 0 | O53: =M53-N53 -> 0
A54: Zwischensumme: | M54: =SUM(M50:M53) -> 6300 | N54: =SUM(N50:N53) -> 4267.05 | O54: =SUM(O50:O53) -> 2032.95
A55: Gesamtsumme: | J55: =SUM(J48,J43,J38,J23) -> 13283.33333 | K55: =SUM(K48,K43,K38,K23) -> 11030.6 | L55: =SUM(L48,L43,L38,L23) -> -2252.733333 | M55: =SUM(M54,M48,M43,M38,M23) -> 215426 | N55: =SUM(N54,N48,N43,N38,N23) -> 136229.76 | O55: =SUM(O54,O48,O43,O38,O23) -> 90002.84 | P55: =SUM(P23,P38,P48) -> 32010 | Q55: =SUM(Q48,Q38,Q23) -> 643.56 | R55: =SUM(R48,R38,R23) -> 31300 | S55: =SUM(S48,S38,S23) -> 58520

Sheet Detailblatt II
A1: Detailblatt II | B1: Jahr - | C1: ='Detailblatt I'!F1 -> 2021 | E1: Häufigkeit | F1: Einnahmen | I1: Ausgaben
F2: PLAN | G2: IST | H2: SALDO | I2: PLAN | J2: IST | K2: SALDO
A3: Konferenz Sächsischer Studierendenschaften - Konto: 4981
A4: Finanzvereinbarung | E4: 1 | F4: 0 | G4: 0 | H4: =G4-F4 -> 0 | I4: =1350+23.4 -> 1373.4 | J4: 1373.4 | K4: =I4-J4 -> 0
A5: Förderung der KSS (so auch Domain kss-sachsen.de) | E5: 1 | F5: 0 | G5: 0 | H5: =G5-F5 -> 0 | I5: =650-23.4 -> 626.6 | J5: 4.65 | K5: =I5-J5 -> 621.95
D6: Zwischensumme: | F6: =SUM(F4:F5) -> 0 | G6: =SUM(G4:G5) -> 0 | H6: =SUM(H4:H5) -> 0 | I6: =SUM(I4:I5) -> 2000 | J6: =SUM(J4:J5) -> 1378.05 | K6: =SUM(K4:K5) -> 621.95
A7: Interessenvertretungen der Studentinnen- und Studentenschaften - Konto: 4982
A8: faranto e.V. | F8: 0 | G8: 0 | H8: =G8-F8 -> 0 | I8: 600 | J8: 0 | K8: =I8-J8 -> 600
A9: Erasmus Student Network | F9: 0 | G9: 0 | H9: =G9-F9 -> 0 | I9: 200 | J9: 0 | K9: =I9-J9 -> 200
A10: freier zusammenschluss von studentInnenschaften (fzs) e.V. | E10: 1 | F10: 0 | G10: 0 | H10: =G10-F10 -> 0 | I10: 3500 | J10: 2889 | K10: =I10-J10 -> 611
A11: weitere | F11: 0 | G11: 0 | H11: =G11-F11 -> 0 | I11: 0 | J11: 0 | K11: =I11-J11 -> 0
D12: Zwischensumme: | F12: =SUM(F8:F11) -> 0 | G12: =SUM(G8:G11) -> 0 | H12: =SUM(H8:H11) -> 0 | I12: =SUM(I8:I11) -> 4300 | J12: =SUM(J8:J11) -> 2889 | K12: =SUM(K8:K11) -> 1411
A13: Beitragseinnahmen
A14: Anteilig WS 20/21 | B14: 17 | C14: x Studierende | D14: 4862 | E14: 1 | F14: =ROUND((($B$14*$D$14)/6)*2,-2) -> 27600 | G14: 27551.34 | H14: =G14-F14 -> -48.66 | I14: 0 | J14: 0 | K14: =I14-J14 -> 0
A15: SoSe 21 | B15: 17.5 | D15: 4336 | E15: 1 | F15: =ROUND($B$15*$D$15,-2) -> 75900 | G15: 75880 | H15: =G15-F15 -> -20 | I15: 0 | J15: 0 | K15: =I15-J15 -> 0
A16: Anteilig WS 21/22 | B16: 17.5 | D16: 4908 | E16: 1 | F16: =ROUND((($B$16*$D$16)/6)*4,-2) -> 57300 | G16: 57260 | H16: =G16-F16 -> -40 | I16: 0 | J16: 0 | K16: =I16-J16 -> 0
D17: Zwischensumme: | F17: =SUM(F14:F16) -> 160800 | G17: =SUM(G14:G16) -> 160691.34 | H17: =SUM(H14:H16) -> -108.66 | I17: =SUM(I14:I16) -> 0 | J17: =SUM(J14:J16) -> 0 | K17: =SUM(K14:K16) -> 0
A18: Vermögen
A19: Verfügbare finanzielle Mittel | F19: ='fortgeschr. Mittel+Konto'!D9 -> 103496.01 | H19: =G19-F19 -> -103496.01 | I19: 0 | J19: 0 | K19: =I19-J19 -> 0
A20: angeordnete Vermögensänderung lt. FO | F20: =Deckblatt!C7 -> 0 | H20: =G20-F20 -> 0 | I20: =IF(F19<Mindestreserve!D17,Mindestreserve!D17-F19,0) -> 0 | K20: =I20-J20 -> 0
A21: Zinsen auf Vermögen | F21: 0 | G21: 0 | H21: =G21-F21 -> 0 | I21: 0 | J21: 0 | K21: =I21-J21 -> 0
A22: geplante Veränderung des Vermögens Ansparen/Entnahme | F22: =Deckblatt!C6*(-1) -> -6742.666667 | G22: 0 | H22: =G22-F22 -> 6742.666667 | I22: =Deckblatt!F6 -> 0 | J22: 0 | K22: =I22-J22 -> 0
D23: Zwischensumme: | F23: =SUM(F19:F22) -> 96753.34333 | G23: =SUM(G19:G22) -> 0 | H23: =SUM(H19:H22) -> -96753.34333 | I23: =SUM(I19:I22) -> 0 | J23: =SUM(J19:J22) -> 0 | K23: =SUM(K19:K22) -> 0
A24: Gesamtsumme: | F24: =SUM(F17,F12,F6) -> 160800 | G24: =SUM(G17,G12,G6) -> 160691.34 | H24: =SUM(H17,H12,H6) -> -108.66 | I24: =SUM(I17,I12,I6) -> 6300 | J24: =SUM(J17,J12,J6) -> 4267.05 | K24: =SUM(K17,K12,K6) -> 2032.95

Sheet Konferenzen
A1: Konferenzen | B1: Häufigkeit | C1: Einnahmen | F1: Ausgaben | I1: nachrangig verwendbares Vj. Budget | J1: davon verwendet | K1: Zuführung "Fortgeschr. finanz. Mittel" | L1: Übertrag ins nächste HH-Jahr | M1: §5 Abs.4 S.2 FO
C2: PLAN | D2: IST | E2: SALDO | F2: PLAN | G2: IST | H2: SALDO
A3: O.S.T. (Bereich Bund/Land) / Hochschulpolitik | B3: 1 | C3: 0 | D3: 0 | E3: =D3-C3 -> 0 | F3: 500 | G3: 0 | H3: =F3-G3 -> 500 | I3: 500 | J3: =IF(H3<0,IF(I3>0,IF((H3*(-1))>I3,I3,H3*(-1)),0),0) -> 0 | K3: =IF(OR(J3>I3,H3+I3<0),MAKRO1(),ROUNDDOWN(I3-J3,-1)) -> 500 | L3: =IF(H3>0,ROUNDDOWN(H3,-1),0) -> 500 | M3: =(D3-G3+J3)-(C3-F3) -> 500
A4: BuFaTa / FSR | B4: 0.5 | C4: 0 | D4: 0 | E4: =D4-C4 -> 0 | F4: 0 | G4: 0 | H4: =F4-G4 -> 0 | I4: 1000 | J4: =IF(H4<0,IF(I4>0,IF((H4*(-1))>I4,I4,H4*(-1)),0),0) -> 0 | K4: =IF(OR(J4>I4,H4+I4<0),MAKRO1(),ROUNDDOWN(I4-J4,-1)) -> 1000 | L4: =IF(H4>0,ROUNDDOWN(H4,-1),0) -> 0 | M4: =(D4-G4+J4)-(C4-F4) -> 0
A5: CoCo-Pauschale | B5: 1 | C5: 0 | D5: 0 | E5: =D5-C5 -> 0 | F5: 250 | G5: 0 | H5: =F5-G5 -> 250 | M5: =(D5-G5+J5)-(C5-F5) -> 250
A6: Gesamtsumme: | C6: =SUM(C3:C5) -> 0 | D6: =SUM(D3:D5) -> 0 | E6: =SUM(E3:E5) -> 0 | F6: =SUM(F3:F5) -> 750 | G6: =SUM(G3:G5) -> 0 | H6: =SUM(H3:H5) -> 750 | I6: =SUM(I3:I5) -> 1500 | J6: =SUM(J3:J5) -> 0 | K6: =SUM(K3:K5) -> 1500 | L6: =SUM(L3:L5) -> 500 | M6: =(D6-G6+J6)-(C6-F6) -> 750

Sheet Personal
A1: Schulungen | B1: Häufigkeit | C1: Einnahmen | F1: Ausgaben | I1: nachrangig verwendbares Vj. Budget | J1: davon verwendet | K1: Zuführung "Fortgeschr. finanz. Mittel" | L1: Übertrag ins nächste HH-Jahr | M1: §5 Abs.4 S.2 FO
C2: PLAN | D2: IST | E2: SALDO | F2: PLAN | G2: IST | H2: SALDO
A3: Akkreditierung / Qualitätsmanagement | B3: 1 | C3: 0 | D3: 0 | E3: =D3-C3 -> 0 | F3: 2500 | G3: 0 | H3: =F3-G3 -> 2500 | I3: 2500 | J3: =IF(H3<0,IF(I3>0,IF((H3*(-1))>I3,I3,H3*(-1)),0),0) -> 0 | K3: =IF(OR(J3>I3,H3+I3<0),MAKRO1(),ROUNDDOWN(I3-J3,-1)) -> 2500 | L3: =IF(H3>0,ROUNDDOWN(H3,-1),0) -> 2500 | M3: =(D3-G3+J3)-(C3-F3) -> 2500
A4: Sozialberatung (BaföG, Jobberatung) / Soziales | B4: 1 | C4: 0 | D4: 0 | E4: =D4-C4 -> 0 | F4: 50 | G4: 0 | H4: =F4-G4 -> 50 | I4: 50 | J4: =IF(H4<0,IF(I4>0,IF((H4*(-1))>I4,I4,H4*(-1)),0),0) -> 0 | K4: =IF(OR(J4>I4,H4+I4<0),MAKRO1(),ROUNDDOWN(I4-J4,-1)) -> 50 | L4: =IF(H4>0,ROUNDDOWN(H4,-1),0) -> 50 | M4: =(D4-G4+J4)-(C4-F4) -> 50
A5: Schulungen studentische und akademische Selbstverwaltung (Studienprüfungsordnung) / Studium | B5: 1 | C5: 0 | D5: 0 | E5: =D5-C5 -> 0 | F5: 100 | G5: 0 | H5: =F5-G5 -> 100 | I5: 100 | J5: =IF(H5<0,IF(I5>0,IF((H5*(-1))>I5,I5,H5*(-1)),0),0) -> 0 | K5: =IF(OR(J5>I5,H5+I5<0),MAKRO1(),ROUNDDOWN(I5-J5,-1)) -> 100 | L5: =IF(H5>0,ROUNDDOWN(H5,-1),0) -> 100 | M5: =(D5-G5+J5)-(C5-F5) -> 100
A6: Prüfungsangelegenheiten / Studium | B6: 1 | C6: 0 | D6: 0 | E6: =D6-C6 -> 0 | F6: 50 | G6: 0 | H6: =F6-G6 -> 50 | I6: 50 | J6: =IF(H6<0,IF(I6>0,IF((H6*(-1))>I6,I6,H6*(-1)),0),0) -> 0 | K6: =IF(OR(J6>I6,H6+I6<0),MAKRO1(),ROUNDDOWN(I6-J6,-1)) -> 50 | L6: =IF(H6>0,ROUNDDOWN(H6,-1),0) -> 50 | M6: =(D6-G6+J6)-(C6-F6) -> 50
A7: pol. Bildung, Antidiskriminierung, Gender- / Hochschulpolitik | B7: 1 | C7: 0 | D7: 0 | E7: =D7-C7 -> 0 | F7: 100 | G7: 0 | H7: =F7-G7 -> 100 | I7: 150 | J7: =IF(H7<0,IF(I7>0,IF((H7*(-1))>I7,I7,H7*(-1)),0),0) -> 0 | K7: =IF(OR(J7>I7,H7+I7<0),MAKRO1(),ROUNDDOWN(I7-J7,-1)) -> 150 | L7: =IF(H7>0,ROUNDDOWN(H7,-1),0) -> 100 | M7: =(D7-G7+J7)-(C7-F7) -> 100
A8: Konstituierungsseminar (KoSe) / StuRa | B8: 1 | C8: 0 | D8: 0 | E8: =D8-C8 -> 0 | F8: 750 | G8: 581.2 | H8: =F8-G8 -> 168.8 | I8: 0 | J8: =IF(H8<0,IF(I8>0,IF((H8*(-1))>I8,I8,H8*(-1)),0),0) -> 0 | K8: =IF(OR(J8>I8,H8+I8<0),MAKRO1(),ROUNDDOWN(I8-J8,-1)) -> 0 | L8: =IF(H8>0,ROUNDDOWN(H8,-1),0) -> 160 | M8: =(D8-G8+J8)-(C8-F8) -> 168.8
A9: Lern- und Informationsseminar (LuISe) / StuRa | B9: 1 | C9: 0 | D9: 0 | E9: =D9-C9 -> 0 | F9: 750 | G9: 0 | H9: =F9-G9 -> 750 | I9: 1000 | J9: =IF(H9<0,IF(I9>0,IF((H9*(-1))>I9,I9,H9*(-1)),0),0) -> 0 | K9: =IF(OR(J9>I9,H9+I9<0),MAKRO1(),ROUNDDOWN(I9-J9,-1)) -> 1000 | L9: =IF(H9>0,ROUNDDOWN(H9,-1),0) -> 750 | M9: =(D9-G9+J9)-(C9-F9) -> 750
A10: CLearance And Rapprochement (CLARA) / StuRa | B10: 1 | C10: 0 | D10: 0 | E10: =D10-C10 -> 0 | F10: 50 | G10: 95.06 | H10: =F10-G10 -> -45.06 | I10: 50 | J10: =IF(H10<0,IF(I10>0,IF((H10*(-1))>I10,I10,H10*(-1)),0),0) -> 45.06 | K10: =IF(OR(J10>I10,H10+I10<0),MAKRO1(),ROUNDDOWN(I10-J10,-1)) -> 0 | L10: =IF(H10>0,ROUNDDOWN(H10,-1),0) -> 0 | M10: =(D10-G10+J10)-(C10-F10) -> 0
A11: Veranstaltung zur fachlichen Weiterbildung / Studium | B11: 1 | C11: 0 | D11: 0 | E11: =D11-C11 -> 0 | F11: 500 | G11: 0 | H11: =F11-G11 -> 500 | I11: 900 | J11: =IF(H11<0,IF(I11>0,IF((H11*(-1))>I11,I11,H11*(-1)),0),0) -> 0 | K11: =IF(OR(J11>I11,H11+I11<0),MAKRO1(),ROUNDDOWN(I11-J11,-1)) -> 900 | L11: =IF(H11>0,ROUNDDOWN(H11,-1),0) -> 500 | M11: =(D11-G11+J11)-(C11-F11) -> 500
A12: CoCo-Pauschale | B12: 1 | C12: 0 | D12: 0 | E12: =D12-C12 -> 0 | F12: 250 | G12: 0 | H12: =F12-G12 -> 250
A13: Zwischensumme: | C13: =SUM(C3:C12) -> 0 | D13: =SUM(D3:D12) -> 0 | E13: =SUM(E3:E12) -> 0 | F13: =SUM(F3:F12) -> 5100 | G13: =SUM(G3:G12) -> 676.26 | H13: =SUM(H3:H12) -> 4423.74 | I13: =SUM(I3:I12) -> 4800 | J13: =SUM(J3:J12) -> 45.06 | K13: =SUM(K3:K12) -> 4750 | L13: =SUM(L3:L12) -> 4210 | M13: =(D13-G13+J13)-(C13-F13) -> 4468.8
A15: Wahlen | B15: Häufigkeit | C15: Einnahmen | F15: Ausgaben | I15: nachrangig verwendbares Vj. Budget | J15: davon verwendet | K15: Zuführung "Fortgeschr. finanz. Mittel" | L15: Übertrag ins nächste HH-Jahr | M15: §5 Abs.4 S.2 FO
C16: PLAN | D16: IST | E16: SALDO | F16: PLAN | G16: IST | H16: SALDO
A17: Informationen zu Wahlen | B17: 2 | C17: 0 | D17: 0 | E17: =D17-C17 -> 0 | F17: 100 | G17: 0 | H17: =F17-G17 -> 100 | I17: 150 | J17: =IF(H17<0,IF(I17>0,IF((H17*(-1))>I17,I17,H17*(-1)),0),0) -> 0 | K17: =IF(OR(J17>I17,H17+I17<0),MAKRO1(),ROUNDDOWN(I17-J17,-1)) -> 150 | L17: =IF(H17>0,ROUNDDOWN(H17,-1),0) -> 100 | M17: =(D17-G17+J17)-(C17-F17) -> 100
A18: Zwischensumme: | C18: =C17 -> 0 | D18: =D17 -> 0 | E18: =E17 -> 0 | F18: =F17 -> 100 | G18: =G17 -> 0 | H18: =H17 -> 100 | I18: =SUM(I17) -> 150 | J18: =SUM(J17) -> 0 | K18: =SUM(K17) -> 150 | L18: =SUM(L17) -> 100 | M18: =(D18-G18+J18)-(C18-F18) -> 100
A20: Gesamtsumme: | C20: =SUM(C13+C18) -> 0 | D20: =SUM(D13+D18) -> 0 | E20: =SUM(E13+E18) -> 0 | F20: =SUM(F13+F18) -> 5200 | G20: =SUM(G13+G18) -> 676.26 | H20: =SUM(H13+H18) -> 4523.74 | I20: =SUM(I13+I18) -> 4950 | J20: =SUM(J13+J18) -> 45.06 | K20: =SUM(K13+K18) -> 4900 | L20: =SUM(L13+L18) -> 4310 | M20: =(D20-G20+J20)-(C20-F20) -> 4568.8

Sheet Finanzen
A1: Referat Finanzen | C1: Häufigkeit | D1: Einnahmen | G1: Ausgaben
D2: PLAN | E2: IST | F2: SALDO | G2: PLAN | H2: IST | I2: SALDO
A3: Kontoführung mit online-banking | B3: Sachkonto: 4970 | C3: 12 | D3: 0 | E3: 0 | F3: =E3-D3 -> 0 | G3: 600 | H3: 414.4 | I3: =G3-H3 -> 185.6
A4: Buchhaltungssoftware AGENDA | B4: Sachkonto: 4955 | C4: 12 | D4: 0 | E4: 0 | F4: =E4-D4 -> 0 | G4: 1000 | H4: 985.32 | I4: =G4-H4 -> 14.68
A5: CoCo-Pauschale | D5: 0 | E5: 0 | F5: =E5-D5 -> 0 | G5: 250 | H5: 0 | I5: =G5-H5 -> 250
A6: Gesamtsumme: | D6: =SUM(D3:D5) -> 0 | E6: =SUM(E3:E5) -> 0 | F6: =SUM(F3:F5) -> 0 | G6: =SUM(G3:G5) -> 1850 | H6: =SUM(H3:H5) -> 1399.72 | I6: =SUM(I3:I5) -> 450.28

Sheet Hochschulpolitik
A1: Referat Hochschulpolitik | B1: Häufigkeit | C1: Einnahmen | F1: Ausgaben | I1: nachrangig verwendbares Vj. Budget | J1: davon verwendet | K1: Zuführung "Fortgeschr. finanz. Mittel" | L1: Übertrag ins nächste HH-Jahr | M1: §5 Abs.4 S.2 FO
C2: PLAN | D2: IST | E2: SALDO | F2: PLAN | G2: IST | H2: SALDO
A3: "festival contre le rasism" | B3: 1 | C3: 0 | D3: 0 | E3: =D3-C3 -> 0 | F3: 100 | G3: 0 | H3: =F3-G3 -> 100 | I3: 0 | J3: =IF(H3<0,IF(I3>0,IF((H3*(-1))>I3,I3,H3*(-1)),0),0) -> 0 | K3: =IF(OR(J3>I3,H3+I3<0),MAKRO1(),ROUNDDOWN(I3-J3,-1)) -> 0 | L3: =IF(H3>0,ROUNDDOWN(H3,-1),0) -> 100 | M3: =(D3-G3+J3)-(C3-F3) -> 100
A4: Aktionstage gegen Sexismus und Homophobie | B4: 1 | C4: 0 | D4: 0 | E4: =D4-C4 -> 0 | F4: 100 | G4: 0 | H4: =F4-G4 -> 100 | I4: 100 | J4: =IF(H4<0,IF(I4>0,IF((H4*(-1))>I4,I4,H4*(-1)),0),0) -> 0 | K4: =IF(OR(J4>I4,H4+I4<0),MAKRO1(),ROUNDDOWN(I4-J4,-1)) -> 100 | L4: =IF(H4>0,ROUNDDOWN(H4,-1),0) -> 100 | M4: =(D4-G4+J4)-(C4-F4) -> 100
A5: Aktionen, Festivals und Demonstrationen | C5: 0 | D5: 0 | E5: =D5-C5 -> 0 | F5: 100 | G5: 0 | H5: =F5-G5 -> 100 | I5: 150 | J5: =IF(H5<0,IF(I5>0,IF((H5*(-1))>I5,I5,H5*(-1)),0),0) -> 0 | K5: =IF(OR(J5>I5,H5+I5<0),MAKRO1(),ROUNDDOWN(I5-J5,-1)) -> 150 | L5: =IF(H5>0,ROUNDDOWN(H5,-1),0) -> 100 | M5: =(D5-G5+J5)-(C5-F5) -> 100
A6: Förderverein HTW Dresden - Mitgliedsbeitrag | B6: 1 | C6: 0 | D6: 0 | E6: =D6-C6 -> 0 | F6: 150 | G6: 150 | H6: =F6-G6 -> 0 | I6: 0 | J6: =IF(H6<0,IF(I6>0,IF((H6*(-1))>I6,I6,H6*(-1)),0),0) -> 0 | K6: =IF(OR(J6>I6,H6+I6<0),MAKRO1(),ROUNDDOWN(I6-J6,-1)) -> 0 | L6: =IF(H6>0,ROUNDDOWN(H6,-1),0) -> 0 | M6: =(D6-G6+J6)-(C6-F6) -> 0
A7: politische Bildung / Umweltbildung | C7: 0 | D7: 0 | E7: =D7-C7 -> 0 | F7: 400 | G7: 0 | H7: =F7-G7 -> 400 | I7: 450 | J7: =IF(H7<0,IF(I7>0,IF((H7*(-1))>I7,I7,H7*(-1)),0),0) -> 0 | K7: =IF(OR(J7>I7,H7+I7<0),MAKRO1(),ROUNDDOWN(I7-J7,-1)) -> 450 | L7: =IF(H7>0,ROUNDDOWN(H7,-1),0) -> 400 | M7: =(D7-G7+J7)-(C7-F7) -> 400
A8: Gesamtsumme: | C8: =SUM(C3:C7) -> 0 | D8: =SUM(D3:D7) -> 0 | E8: =SUM(E3:E7) -> 0 | F8: =SUM(F3:F7) -> 850 | G8: =SUM(G3:G7) -> 150 | H8: =SUM(H3:H7) -> 700 | I8: =SUM(I3:I7) -> 700 | J8: =SUM(J3:J7) -> 0 | K8: =SUM(K3:K7) -> 700 | L8: =SUM(L3:L7) -> 700 | M8: =(D8-G8+J8)-(C8-F8) -> 700

Sheet Internationales
A1: Referat Internationales | B1: Häufigkeit | C1: Einnahmen | F1: Ausgaben | I1: nachrangig verwendbares Vj. Budget | J1: davon verwendet | K1: Zuführung "Fortgeschr. finanz. Mittel" | L1: Übertrag ins nächste HH-Jahr | M1: §5 Abs.4 S.2 FO
C2: PLAN | D2: IST | E2: SALDO | F2: PLAN | G2: IST | H2: SALDO
A3: DAAD Mitgliedsbeitrag | B3: 1 | C3: 0 | D3: 0 | E3: =D3-C3 -> 0 | F3: 50 | G3: 50 | H3: =F3-G3 -> 0 | I3: 0 | J3: =IF(H3<0,IF(I3>0,IF((H3*(-1))>I3,I3,H3*(-1)),0),0) -> 0 | K3: =IF(OR(J3>I3,H3+I3<0),MAKRO1(),ROUNDDOWN(I3-J3,-1)) -> 0 | L3: =IF(H3>0,ROUNDDOWN(H3,-1),0) -> 0 | M3: =(D3-G3+J3)-(C3-F3) -> 0
A4: Internationaler Tag | B4: 1 | C4: 0 | D4: 0 | E4: =D4-C4 -> 0 | F4: 50 | G4: 0 | H4: =F4-G4 -> 50 | I4: 50 | J4: =IF(H4<0,IF(I4>0,IF((H4*(-1))>I4,I4,H4*(-1)),0),0) -> 0 | K4: =IF(OR(J4>I4,H4+I4<0),MAKRO1(),ROUNDDOWN(I4-J4,-1)) -> 50 | L4: =IF(H4>0,ROUNDDOWN(H4,-1),0) -> 50 | M4: =(D4-G4+J4)-(C4-F4) -> 50
A5: CoCo-Pauschale | C5: 0 | D5: 0 | E5: =D5-C5 -> 0 | F5: 250 | G5: 0 | H5: =F5-G5 -> 250
A6: Gesamtsumme: | C6: =SUM(C3:C5) -> 0 | D6: =SUM(D3:D5) -> 0 | E6: =SUM(E3:E5) -> 0 | F6: =SUM(F3:F5) -> 350 | G6: =SUM(G3:G5) -> 50 | H6: =SUM(H3:H5) -> 300 | I6: =SUM(I3:I5) -> 50 | J6: =SUM(J3:J5) -> 0 | K6: =SUM(K3:K5) -> 50 | L6: =SUM(L3:L5) -> 50 | M6: =(D6-G6+J6)-(C6-F6) -> 300

Sheet Kultur
A1: Referat Kultur | B1: Häufigkeit | C1: Einnahmen | F1: Ausgaben | I1: nachrangig verwendbares Vj. Budget | J1: davon verwendet | K1: Zuführung "Fortgeschr. finanz. Mittel" | L1: Übertrag ins nächste HH-Jahr | M1: §5 Abs.4 S.2 FO
C2: PLAN | D2: IST | E2: SALDO | F2: PLAN | G2: IST | H2: SALDO
A3: Semestereröffnungspartys (SEP) | B3: 2 | C3: 1000 | D3: 0 | E3: =D3-C3 -> -1000 | F3: 1000 | G3: 385.62 | H3: =F3-G3 -> 614.38 | I3: 0 | J3: =IF(H3<0,IF(I3>0,IF((H3*(-1))>I3,I3,H3*(-1)),0),0) -> 0 | K3: =IF(OR(J3>I3,H3+I3<0),MAKRO1(),ROUNDDOWN(I3-J3,-1)) -> 0 | L3: =IF(H3>0,ROUNDDOWN(H3,-1),0) -> 610 | M3: =(D3-G3+J3)-(C3-F3) -> -385.62
A4: Kino in der Hochschule | C4: =400-400*(2/3) -> 133.3333333 | D4: 0 | E4: =D4-C4 -> -133.3333333 | F4: =600-600*2/3 -> 200 | G4: 0 | H4: =F4-G4 -> 200 | I4: 350 | J4: =IF(H4<0,IF(I4>0,IF((H4*(-1))>I4,I4,H4*(-1)),0),0) -> 0 | K4: =IF(OR(J4>I4,H4+I4<0),MAKRO1(),ROUNDDOWN(I4-J4,-1)) -> 350 | L4: =IF(H4>0,ROUNDDOWN(H4,-1),0) -> 200 | M4: =(D4-G4+J4)-(C4-F4) -> 66.66666667
A5: Rockkonzert | B5: 1 | C5: 500 | D5: 0 | E5: =D5-C5 -> -500 | F5: 500 | G5: 48.2 | H5: =F5-G5 -> 451.8 | I5: 1000 | J5: =IF(H5<0,IF(I5>0,IF((H5*(-1))>I5,I5,H5*(-1)),0),0) -> 0 | K5: =IF(OR(J5>I5,H5+I5<0),MAKRO1(),ROUNDDOWN(I5-J5,-1)) -> 1000 | L5: =IF(H5>0,ROUNDDOWN(H5,-1),0) -> 450 | M5: =(D5-G5+J5)-(C5-F5) -> -48.2
A6: Spieleabende | B6: 2 | C6: 0 | D6: 0 | E6: =D6-C6 -> 0 | F6: 100 | G6: 0 | H6: =F6-G6 -> 100 | I6: 0 | J6: =IF(H6<0,IF(I6>0,IF((H6*(-1))>I6,I6,H6*(-1)),0),0) -> 0 | K6: =IF(OR(J6>I6,H6+I6<0),MAKRO1(),ROUNDDOWN(I6-J6,-1)) -> 0 | L6: =IF(H6>0,ROUNDDOWN(H6,-1),0) -> 100 | M6: =(D6-G6+J6)-(C6-F6) -> 100
A7: Dies Academicus | B7: 1 | C7: 0 | D7: 0 | E7: =D7-C7 -> 0 | F7: 300 | G7: 0 | H7: =F7-G7 -> 300 | I7: 0 | J7: =IF(H7<0,IF(I7>0,IF((H7*(-1))>I7,I7,H7*(-1)),0),0) -> 0 | K7: =IF(OR(J7>I7,H7+I7<0),MAKRO1(),ROUNDDOWN(I7-J7,-1)) -> 0 | L7: =IF(H7>0,ROUNDDOWN(H7,-1),0) -> 300 | M7: =(D7-G7+J7)-(C7-F7) -> 300
A8: LAN-Partys | B8: 1 | C8: 300 | D8: 110 | E8: =D8-C8 -> -190 | F8: 300 | G8: 310.28 | H8: =F8-G8 -> -10.28 | I8: 600 | J8: =IF(H8<0,IF(I8>0,IF((H8*(-1))>I8,I8,H8*(-1)),0),0) -> 10.28 | K8: =IF(OR(J8>I8,H8+I8<0),MAKRO1(),ROUNDDOWN(I8-J8,-1)) -> 580 | L8: =IF(H8>0,ROUNDDOWN(H8,-1),0) -> 0 | M8: =(D8-G8+J8)-(C8-F8) -> -190
A9: Fakfeste & Sommerfeste | C9: 2500 | D9: 0 | E9: =D9-C9 -> -2500 | F9: 2500 | G9: 0 | H9: =F9-G9 -> 2500 | I9: 1230 | J9: =IF(H9<0,IF(I9>0,IF((H9*(-1))>I9,I9,H9*(-1)),0),0) -> 0 | K9: =IF(OR(J9>I9,H9+I9<0),MAKRO1(),ROUNDDOWN(I9-J9,-1)) -> 1230 | L9: =IF(H9>0,ROUNDDOWN(H9,-1),0) -> 2500 | M9: =(D9-G9+J9)-(C9-F9) -> 0
A10: Erstifahrten | C10: 0 | D10: 0 | E10: =D10-C10 -> 0 | F10: 0 | G10: 0 | H10: =F10-G10 -> 0 | I10: 3500 | J10: =IF(H10<0,IF(I10>0,IF((H10*(-1))>I10,I10,H10*(-1)),0),0) -> 0 | K10: =IF(OR(J10>I10,H10+I10<0),MAKRO1(),ROUNDDOWN(I10-J10,-1)) -> 3500 | L10: =IF(H10>0,ROUNDDOWN(H10,-1),0) -> 0 | M10: =(D10-G10+J10)-(C10-F10) -> 0
A11: Weihnachtsfeiern | C11: 3000 | D11: 0 | E11: =D11-C11 -> -3000 | F11: 3500 | G11: 0 | H11: =F11-G11 -> 3500 | I11: 0 | J11: =IF(H11<0,IF(I11>0,IF((H11*(-1))>I11,I11,H11*(-1)),0),0) -> 0 | K11: =IF(OR(J11>I11,H11+I11<0),MAKRO1(),ROUNDDOWN(I11-J11,-1)) -> 0 | L11: =IF(H11>0,ROUNDDOWN(H11,-1),0) -> 3500 | M11: =(D11-G11+J11)-(C11-F11) -> 500
A12: CoCo-Pauschale | C12: 0 | D12: 0 | E12: =D12-C12 -> 0 | F12: 250 | G12: 0 | H12: =F12-G12 -> 250
A13: Teambuilding (Gruppenkuscheln?) | B13: 1 | C13: 1500 | D13: 0 | E13: =D13-C13 -> -1500 | F13: 2500 | G13: 0 | H13: =F13-G13 -> 2500 | I13: 4360 | J13: =IF(H13<0,IF(I13>0,IF((H13*(-1))>I13,I13,H13*(-1)),0),0) -> 0 | K13: =IF(OR(J13>I13,H13+I13<0),MAKRO1(),ROUNDDOWN(I13-J13,-1)) -> 4360 | L13: =IF(H13>0,ROUNDDOWN(H13,-1),0) -> 2500 | M13: =(D13-G13+J13)-(C13-F13) -> 1000
A14: Gesamtsumme: | C14: =SUM(C3:C13) -> 8933.333333 | D14: =SUM(D3:D13) -> 110 | E14: =SUM(E3:E13) -> -8823.333333 | F14: =SUM(F3:F13) -> 11150 | G14: =SUM(G3:G13) -> 744.1 | H14: =SUM(H3:H13) -> 10405.9 | I14: =SUM(I3:I13) -> 11040 | J14: =SUM(J3:J13) -> 10.28 | K14: =SUM(K3:K13) -> 11020 | L14: =SUM(L3:L13) -> 10160 | M14: =(D14-G14+J14)-(C14-F14) -> 1592.846667

Sheet Öffentlichkeitsarbeit
A1: Referat Öffentlichkeitsarbeit | B1: Häufigkeit | C1: Einnahmen | F1: Ausgaben | I1: nachrangig verwendbares Vj. Budget | J1: davon verwendet | K1: Zuführung "Fortgeschr. finanz. Mittel" | L1: Übertrag ins nächste HH-Jahr | M1: §5 Abs.4 S.2 FO
C2: PLAN | D2: IST | E2: SALDO | F2: PLAN | G2: IST | H2: SALDO
A3: Druck Hochschul-ABC (Anteilig) | B3: 1 | C3: 0 | D3: 0 | E3: =D3-C3 -> 0 | F3: 400 | G3: 0 | H3: =F3-G3 -> 400 | I3: 450 | J3: =IF(H3<0,IF(I3>0,IF((H3*(-1))>I3,I3,H3*(-1)),0),0) -> 0 | K3: =IF(OR(J3>I3,H3+I3<0),MAKRO1(),ROUNDDOWN(I3-J3,-1)) -> 450 | L3: =IF(H3>0,ROUNDDOWN(H3,-1),0) -> 400 | M3: =(D3-G3+J3)-(C3-F3) -> 400
A4: Hochschulveranstaltungen | B4: 2 | C4: 0 | D4: 0 | E4: =D4-C4 -> 0 | F4: 200 | G4: 0 | H4: =F4-G4 -> 200 | I4: 200 | J4: =IF(H4<0,IF(I4>0,IF((H4*(-1))>I4,I4,H4*(-1)),0),0) -> 0 | K4: =IF(OR(J4>I4,H4+I4<0),MAKRO1(),ROUNDDOWN(I4-J4,-1)) -> 200 | L4: =IF(H4>0,ROUNDDOWN(H4,-1),0) -> 200 | M4: =(D4-G4+J4)-(C4-F4) -> 200
A5: Werbemittel | C5: 0 | D5: 0 | E5: =D5-C5 -> 0 | F5: 750 | G5: 13.5 | H5: =F5-G5 -> 736.5 | I5: 840 | J5: =IF(H5<0,IF(I5>0,IF((H5*(-1))>I5,I5,H5*(-1)),0),0) -> 0 | K5: =IF(OR(J5>I5,H5+I5<0),MAKRO1(),ROUNDDOWN(I5-J5,-1)) -> 840 | L5: =IF(H5>0,ROUNDDOWN(H5,-1),0) -> 730 | M5: =(D5-G5+J5)-(C5-F5) -> 736.5
A6: Interessiertengrillen | B6: 2 | C6: 0 | D6: 0 | E6: =D6-C6 -> 0 | F6: 250 | G6: 0 | H6: =F6-G6 -> 250 | I6: 0 | J6: =IF(H6<0,IF(I6>0,IF((H6*(-1))>I6,I6,H6*(-1)),0),0) -> 0 | K6: =IF(OR(J6>I6,H6+I6<0),MAKRO1(),ROUNDDOWN(I6-J6,-1)) -> 0 | L6: =IF(H6>0,ROUNDDOWN(H6,-1),0) -> 250 | M6: =(D6-G6+J6)-(C6-F6) -> 250
A7: CoCo-Pauschale | C7: 0 | D7: 0 | E7: =D7-C7 -> 0 | F7: 250 | G7: 0 | H7: =F7-G7 -> 250
A8: Merchandise u.ä. | C8: 750 | D8: 60 | E8: =D8-C8 -> -690 | F8: 1000 | G8: 0 | H8: =F8-G8 -> 1000 | I8: 220 | J8: =IF(H8<0,IF(I8>0,IF((H8*(-1))>I8,I8,H8*(-1)),0),0) -> 0 | K8: =IF(OR(J8>I8,H8+I8<0),MAKRO1(),ROUNDDOWN(I8-J8,-1)) -> 220 | L8: =IF(H8>0,ROUNDDOWN(H8,-1),0) -> 1000 | M8: =(D8-G8+J8)-(C8-F8) -> 310
A9: Gesamtsumme: | C9: =SUM(C3:C8) -> 750 | D9: =SUM(D3:D8) -> 60 | E9: =SUM(E3:E8) -> -690 | F9: =SUM(F3:F8) -> 2850 | G9: =SUM(G3:G8) -> 13.5 | H9: =SUM(H3:H8) -> 2836.5 | I9: =SUM(I3:I8) -> 1710 | J9: =SUM(J3:J8) -> 0 | K9: =SUM(K3:K8) -> 1710 | L9: =SUM(L3:L8) -> 2580 | M9: =(D9-G9+J9)-(C9-F9) -> 2146.5

Sheet Qualitätsmanagement
A1: Referat Qualitätsmanagement | B1: Häufigkeit | C1: Einnahmen | F1: Ausgaben | I1: nachrangig verwendbares Vj. Budget | J1: davon verwendet | K1: Zuführung "Fortgeschr. finanz. Mittel" | L1: Übertrag ins nächste HH-Jahr | M1: §5 Abs.4 S.2 FO
C2: PLAN | D2: IST | E2: SALDO | F2: PLAN | G2: IST | H2: SALDO
A3: Veranstaltung zu Erste Hilfe | B3: 2 | C3: 0 | D3: 0 | E3: =D3-C3 -> 0 | F3: 250 | G3: 0 | H3: =F3-G3 -> 250 | I3: 0 | J3: =IF(H3<0,IF(I3>0,IF((H3*(-1))>I3,I3,H3*(-1)),0),0) -> 0 | K3: =IF(OR(J3>I3,H3+I3<0),MAKRO1(),ROUNDDOWN(I3-J3,-1)) -> 0 | L3: =IF(H3>0,ROUNDDOWN(H3,-1),0) -> 250 | M3: =(D3-G3+J3)-(C3-F3) -> 250
A4: Erstsemestereinführung (ESE) | B4: 1 | C4: 0 | D4: 0 | E4: =D4-C4 -> 0 | F4: 4500 | G4: 4010.3 | H4: =F4-G4 -> 489.7 | I4: 0 | J4: =IF(H4<0,IF(I4>0,IF((H4*(-1))>I4,I4,H4*(-1)),0),0) -> 0 | K4: =IF(OR(J4>I4,H4+I4<0),MAKRO1(),ROUNDDOWN(I4-J4,-1)) -> 0 | L4: =IF(H4>0,ROUNDDOWN(H4,-1),0) -> 480 | M4: =(D4-G4+J4)-(C4-F4) -> 489.7
A5: CoCo-Pauschale | C5: 0 | D5: 0 | E5: =D5-C5 -> 0 | F5: 250 | G5: 0 | H5: =F5-G5 -> 250
A6: Gesamtsumme: | C6: =SUM(C3:C5) -> 0 | D6: =SUM(D3:D5) -> 0 | E6: =SUM(E3:E5) -> 0 | F6: =SUM(F3:F5) -> 5000 | G6: =SUM(G3:G5) -> 4010.3 | H6: =SUM(H3:H5) -> 989.7 | I6: =SUM(I3:I5) -> 0 | J6: =SUM(J3:J5) -> 0 | K6: =SUM(K3:K5) -> 0 | L6: =SUM(L3:L5) -> 730 | M6: =SUM(M3:M5) -> 739.7

Sheet Soziales
A1: Referat Soziales | B1: Häufigkeit | C1: Einnahmen | F1: Ausgaben | I1: nachrangig verwendbares Vj. Budget | J1: davon verwendet | K1: Zuführung "Fortgeschr. finanz. Mittel" | L1: Übertrag ins nächste HH-Jahr | M1: §5 Abs.4 S.2 FO
C2: PLAN | D2: IST | E2: SALDO | F2: PLAN | G2: IST | H2: SALDO
A3: Projekt "Studieren mit Kind" | C3: 0 | D3: 0 | E3: =D3-C3 -> 0 | F3: 200 | G3: 0 | H3: =F3-G3 -> 200 | I3: 200 | J3: =IF(H3<0,IF(I3>0,IF((H3*(-1))>I3,I3,H3*(-1)),0),0) -> 0 | K3: =IF(OR(J3>I3,H3+I3<0),MAKRO1(),ROUNDDOWN(I3-J3,-1)) -> 200 | L3: =IF(H3>0,ROUNDDOWN(H3,-1),0) -> 200 | M3: =(D3-G3+J3)-(C3-F3) -> 200
A4: Projekt Studieren mit Beeinträchtigung | C4: 200 | D4: 0 | E4: =D4-C4 -> -200 | F4: 200 | G4: 0 | H4: =F4-G4 -> 200 | I4: 100 | J4: =IF(H4<0,IF(I4>0,IF((H4*(-1))>I4,I4,H4*(-1)),0),0) -> 0 | K4: =IF(OR(J4>I4,H4+I4<0),MAKRO1(),ROUNDDOWN(I4-J4,-1)) -> 100 | L4: =IF(H4>0,ROUNDDOWN(H4,-1),0) -> 200 | M4: =(D4-G4+J4)-(C4-F4) -> 0
A5: Veranstaltungen zu sozialen Belangen | B5: 2 | C5: 0 | D5: 0 | E5: =D5-C5 -> 0 | F5: 150 | G5: 0 | H5: =F5-G5 -> 150 | I5: 150 | J5: =IF(H5<0,IF(I5>0,IF((H5*(-1))>I5,I5,H5*(-1)),0),0) -> 0 | K5: =IF(OR(J5>I5,H5+I5<0),MAKRO1(),ROUNDDOWN(I5-J5,-1)) -> 150 | L5: =IF(H5>0,ROUNDDOWN(H5,-1),0) -> 150 | M5: =(D5-G5+J5)-(C5-F5) -> 150
A6: Finanzielle Nothilfe (Covid-19) | C6: 0 | D6: 0 | E6: =D6-C6 -> 0 | F6: 0 | G6: 0 | H6: =F6-G6 -> 0
A7: CoCo-Pauschale | C7: 0 | D7: 0 | E7: =D7-C7 -> 0 | F7: 250 | G7: 0 | H7: =F7-G7 -> 250
A8: Gesamtsumme: | C8: =SUM(C3:C7) -> 200 | D8: =SUM(D3:D7) -> 0 | E8: =SUM(E3:E7) -> -200 | F8: =SUM(F3:F7) -> 800 | G8: =SUM(G3:G7) -> 0 | H8: =SUM(H3:H7) -> 800 | I8: =SUM(I3:I7) -> 450 | J8: =SUM(J3:J7) -> 0 | K8: =SUM(K3:K7) -> 450 | L8: =SUM(L3:L7) -> 550 | M8: =(D8-G8+J8)-(C8-F8) -> 600

Sheet Sport
A1: Referat Sport | B1: Häufigkeit | C1: Einnahmen | F1: Ausgaben | I1: nachrangig verwendbares Vj. Budget | J1: davon verwendet | K1: Zuführung "Fortgeschr. finanz. Mittel" | L1: Übertrag ins nächste HH-Jahr | M1: §5 Abs.4 S.2 FO
C2: PLAN | D2: IST | E2: SALDO | F2: PLAN | G2: IST | H2: SALDO
A3: Turniere, Preise, Beiträge | C3: 0 | D3: 0 | E3: =D3-C3 -> 0 | F3: 500 | G3: 0 | H3: =F3-G3 -> 500 | I3: 250 | J3: =IF(H3<0,IF(I3>0,IF((H3*(-1))>I3,I3,H3*(-1)),0),0) -> 0 | K3: =IF(OR(J3>I3,H3+I3<0),MAKRO1(),ROUNDDOWN(I3-J3,-1)) -> 250 | L3: =IF(H3>0,ROUNDDOWN(H3,-1),0) -> 500 | M3: =(D3-G3+J3)-(C3-F3) -> 500
A4: Startgebühren | B4: 1 | C4: 0 | D4: 0 | E4: =D4-C4 -> 0 | F4: 200 | G4: 0 | H4: =F4-G4 -> 200 | I4: 100 | J4: =IF(H4<0,IF(I4>0,IF((H4*(-1))>I4,I4,H4*(-1)),0),0) -> 0 | K4: =IF(OR(J4>I4,H4+I4<0),MAKRO1(),ROUNDDOWN(I4-J4,-1)) -> 100 | L4: =IF(H4>0,ROUNDDOWN(H4,-1),0) -> 200 | M4: =(D4-G4+J4)-(C4-F4) -> 200
A5: Drachenbootrennen | B5: 1 | C5: 0 | D5: 0 | E5: =D5-C5 -> 0 | F5: 0 | G5: 0 | H5: =F5-G5 -> 0 | I5: 0 | J5: =IF(H5<0,IF(I5>0,IF((H5*(-1))>I5,I5,H5*(-1)),0),0) -> 0 | K5: =IF(OR(J5>I5,H5+I5<0),MAKRO1(),ROUNDDOWN(I5-J5,-1)) -> 0 | L5: =IF(H5>0,ROUNDDOWN(H5,-1),0) -> 0 | M5: =(D5-G5+J5)-(C5-F5) -> 0
A6: sächsische Beachmeisterschaften | B6: 1 | C6: 0 | D6: 0 | E6: =D6-C6 -> 0 | F6: 0 | G6: 0 | H6: =F6-G6 -> 0 | I6: 0 | J6: =IF(H6<0,IF(I6>0,IF((H6*(-1))>I6,I6,H6*(-1)),0),0) -> 0 | K6: =IF(OR(J6>I6,H6+I6<0),MAKRO1(),ROUNDDOWN(I6-J6,-1)) -> 0 | L6: =IF(H6>0,ROUNDDOWN(H6,-1),0) -> 0 | M6: =(D6-G6+J6)-(C6-F6) -> 0
A7: Gesundheitsmanagement | B7: 1 | C7: 0 | D7: 0 | E7: =D7-C7 -> 0 | F7: 500 | G7: 0 | H7: =F7-G7 -> 500 | I7: 0 | J7: =IF(H7<0,IF(I7>0,IF((H7*(-1))>I7,I7,H7*(-1)),0),0) -> 0 | K7: =IF(OR(J7>I7,H7+I7<0),MAKRO1(),ROUNDDOWN(I7-J7,-1)) -> 0 | L7: 0 | M7: =(D7-G7+J7)-(C7-F7) -> 500
A8: Ausflüge | B8: 1 | C8: 200 | D8: 0 | E8: =D8-C8 -> -200 | F8: 400 | G8: 0 | H8: =F8-G8 -> 400 | I8: 0 | J8: =IF(H8<0,IF(I8>0,IF((H8*(-1))>I8,I8,H8*(-1)),0),0) -> 0 | K8: =IF(OR(J8>I8,H8+I8<0),MAKRO1(),ROUNDDOWN(I8-J8,-1)) -> 0 | L8: 0 | M8: =(D8-G8+J8)-(C8-F8) -> 200
A9: Hochschulsportfest | B9: 1 | C9: 0 | D9: 0 | E9: =D9-C9 -> 0 | F9: 0 | G9: 0 | H9: =F9-G9 -> 0 | I9: 150 | J9: =IF(H9<0,IF(I9>0,IF((H9*(-1))>I9,I9,H9*(-1)),0),0) -> 0 | K9: =IF(OR(J9>I9,H9+I9<0),MAKRO1(),ROUNDDOWN(I9-J9,-1)) -> 150 | L9: =IF(H9>0,ROUNDDOWN(H9,-1),0) -> 0 | M9: =(D9-G9+J9)-(C9-F9) -> 0
A10: CoCo-Pauschale | C10: 0 | D10: 0 | E10: =D10-C10 -> 0 | F10: 250 | G10: 0 | H10: =F10-G10 -> 250 | I10: 0 | J10: =IF(H10<0,IF(I10>0,IF((H10*(-1))>I10,I10,H10*(-1)),0),0) -> 0 | K10: =IF(OR(J10>I10,H10+I10<0),MAKRO1(),ROUNDDOWN(I10-J10,-1)) -> 0 | L10: 0 | M10: =(D10-G10+J10)-(C10-F10) -> 250
A11: Gesamtsumme: | C11: =SUM(C3:C10) -> 200 | D11: =SUM(D3:D10) -> 0 | E11: =SUM(E3:E10) -> -200 | F11: =SUM(F3:F10) -> 1850 | G11: =SUM(G3:G10) -> 0 | H11: =SUM(H3:H10) -> 1850 | I11: =SUM(I3:I10) -> 500 | J11: =SUM(J3:J10) -> 0 | K11: =SUM(K3:K10) -> 500 | L11: =SUM(L3:L10) -> 700 | M11: =(D11-G11+J11)-(C11-F11) -> 1650

Sheet Studium
A1: Referat Studium | B1: Häufigkeit | C1: Einnahmen | F1: Ausgaben | I1: nachrangig verwendbares Vj. Budget | J1: davon verwendet | K1: Zuführung "Fortgeschr. finanz. Mittel" | L1: Übertrag ins nächste HH-Jahr | M1: §5 Abs.4 S.2 FO
C2: PLAN | D2: IST | E2: SALDO | F2: PLAN | G2: IST | H2: SALDO
A3: Kompetenzorientiertes Prüfen | C3: 0 | D3: 0 | E3: =D3-C3 -> 0 | F3: 0 | G3: 0 | H3: =F3-G3 -> 0 | I3: 0 | J3: =IF(H3<0,IF(I3>0,IF((H3*(-1))>I3,I3,H3*(-1)),0),0) -> 0 | K3: =IF(OR(J3>I3,H3+I3<0),MAKRO1(),ROUNDDOWN(I3-J3,-1)) -> 0 | L3: =IF(H3>0,ROUNDDOWN(H3,-1),0) -> 0 | M3: =(D3-G3+J3)-(C3-F3) -> 0
A4: Study Night o.ä. | B4: 1 | C4: 0 | D4: 0 | E4: =D4-C4 -> 0 | F4: 0 | G4: 0 | H4: =F4-G4 -> 0 | I4: 550 | J4: =IF(H4<0,IF(I4>0,IF((H4*(-1))>I4,I4,H4*(-1)),0),0) -> 0 | K4: =IF(OR(J4>I4,H4+I4<0),MAKRO1(),ROUNDDOWN(I4-J4,-1)) -> 550 | L4: =IF(H4>0,ROUNDDOWN(H4,-1),0) -> 0 | M4: =(D4-G4+J4)-(C4-F4) -> 0
A5: Systemakkreditierung, was nun? | C5: 0 | D5: 0 | E5: =D5-C5 -> 0 | F5: 0 | G5: 0 | H5: =F5-G5 -> 0 | I5: 0 | J5: =IF(H5<0,IF(I5>0,IF((H5*(-1))>I5,I5,H5*(-1)),0),0) -> 0 | K5: =IF(OR(J5>I5,H5+I5<0),MAKRO1(),ROUNDDOWN(I5-J5,-1)) -> 0 | L5: =IF(H5>0,ROUNDDOWN(H5,-1),0) -> 0 | M5: =(D5-G5+J5)-(C5-F5) -> 0
A6: CoCo-Pauschale | C6: 0 | D6: 0 | E6: =D6-C6 -> 0 | F6: 250 | G6: 0 | H6: =F6-G6 -> 250
A7: Gesamtsumme: | C7: =SUM(C3:C6) -> 0 | D7: =SUM(D3:D6) -> 0 | E7: =SUM(E3:E6) -> 0 | F7: =SUM(F3:F6) -> 250 | G7: =SUM(G3:G6) -> 0 | H7: =SUM(H3:H6) -> 250 | I7: =SUM(I3:I6) -> 550 | J7: =SUM(J3:J6) -> 0 | K7: =SUM(K3:K6) -> 550 | L7: =SUM(L3:L6) -> 0 | M7: =(D7-G7+J7)-(C7-F7) -> 250

Sheet Studentische Verwaltung
A1: Referat Verwaltung | B1: Häufigkeit | C1: Einnahmen | F1: Ausgaben | I1: nachrangig verwendbares Vj. Budget | J1: davon verwendet | K1: Zuführung "Fortgeschr. finanz. Mittel" | L1: Übertrag ins nächste HH-Jahr | M1: §5 Abs.4 S.2 FO
C2: PLAN | D2: IST | E2: SALDO | F2: PLAN | G2: IST | H2: SALDO
A3: Telefon | C3: 0 | D3: 0 | E3: =D3-C3 -> 0 | F3: 50 | G3: 0 | H3: =F3-G3 -> 50 | I3: 100 | J3: =IF(H3<0,IF(I3>0,IF((H3*(-1))>I3,I3,H3*(-1)),0),0) -> 0 | K3: =IF(OR(J3>I3,H3+I3<0),MAKRO1(),ROUNDDOWN(I3-J3,-1)) -> 100 | L3: =IF(H3>0,ROUNDDOWN(H3,-1),0) -> 50 | M3: =(D3-G3+J3)-(C3-F3) -> 50
A4: Domains | C4: 0 | D4: 0 | E4: =D4-C4 -> 0 | F4: 150 | G4: 141.19 | H4: =F4-G4 -> 8.81 | I4: 30 | J4: =IF(H4<0,IF(I4>0,IF((H4*(-1))>I4,I4,H4*(-1)),0),0) -> 0 | K4: =IF(OR(J4>I4,H4+I4<0),MAKRO1(),ROUNDDOWN(I4-J4,-1)) -> 30 | L4: =IF(H4>0,ROUNDDOWN(H4,-1),0) -> 0 | M4: =(D4-G4+J4)-(C4-F4) -> 8.81
A5: Beitrag Gruppenausweis für Jugendherbergen (DJH) | B5: 1 | C5: 0 | D5: 0 | E5: =D5-C5 -> 0 | F5: 26 | G5: 26 | H5: =F5-G5 -> 0 | I5: 30 | J5: =IF(H5<0,IF(I5>0,IF((H5*(-1))>I5,I5,H5*(-1)),0),0) -> 0 | K5: =IF(OR(J5>I5,H5+I5<0),MAKRO1(),ROUNDDOWN(I5-J5,-1)) -> 30 | L5: =IF(H5>0,ROUNDDOWN(H5,-1),0) -> 0 | M5: =(D5-G5+J5)-(C5-F5) -> 0
A6: Labeldrucker (für die ISIC-Ausweise) | B6: 1 | C6: 0 | D6: 0 | E6: =D6-C6 -> 0 | F6: 0 | G6: 0 | H6: =F6-G6 -> 0 | I6: 0 | J6: =IF(H6<0,IF(I6>0,IF((H6*(-1))>I6,I6,H6*(-1)),0),0) -> 0 | K6: =IF(OR(J6>I6,H6+I6<0),MAKRO1(),ROUNDDOWN(I6-J6,-1)) -> 0 | L6: =IF(H6>0,ROUNDDOWN(H6,-1),0) -> 0 | M6: =(D6-G6+J6)-(C6-F6) -> 0
A7: Vertrieb ISIC | C7: 200 | D7: 54 | E7: =D7-C7 -> -146 | F7: 0 | G7: 0 | H7: =F7-G7 -> 0 | I7: 200 | J7: =IF(H7<0,IF(I7>0,IF((H7*(-1))>I7,I7,H7*(-1)),0),0) -> 0 | K7: =IF(OR(J7>I7,H7+I7<0),MAKRO1(),ROUNDDOWN(I7-J7,-1)) -> 200 | L7: =IF(H7>0,ROUNDDOWN(H7,-1),0) -> 0 | M7: =(D7-G7+J7)-(C7-F7) -> -146
A8: Dienste für elektronische Datenverarbeitung | C8: 0 | D8: 0 | E8: =D8-C8 -> 0 | F8: 15000 | G8: 0 | H8: =F8-G8 -> 15000 | I8: 900 | J8: =IF(H8<0,IF(I8>0,IF((H8*(-1))>I8,I8,H8*(-1)),0),0) -> 0 | K8: =IF(OR(J8>I8,H8+I8<0),MAKRO1(),ROUNDDOWN(I8-J8,-1)) -> 900 | L8: =IF(H8>0,ROUNDDOWN(H8,-1),0) -> 15000 | M8: =(D8-G8+J8)-(C8-F8) -> 15000
A9: Anschaffungen zwecks Umstrukturierung StuRa | C9: 0 | D9: 0 | E9: =D9-C9 -> 0 | F9: 1000 | G9: 0 | H9: =F9-G9 -> 1000 | I9: 0 | J9: =IF(H9<0,IF(I9>0,IF((H9*(-1))>I9,I9,H9*(-1)),0),0) -> 0 | K9: =IF(OR(J9>I9,H9+I9<0),MAKRO1(),ROUNDDOWN(I9-J9,-1)) -> 0 | L9: =IF(H9>0,ROUNDDOWN(H9,-1),0) -> 1000 | M9: =(D9-G9+J9)-(C9-F9) -> 1000
A10: andauernde Betreuung Server durch Externe | C10: 0 | D10: 0 | E10: =D10-C10 -> 0 | F10: 2400 | G10: 0 | H10: =F10-G10 -> 2400 | I10: 0 | J10: =IF(H10<0,IF(I10>0,IF((H10*(-1))>I10,I10,H10*(-1)),0),0) -> 0 | K10: =IF(OR(J10>I10,H10+I10<0),MAKRO1(),ROUNDDOWN(I10-J10,-1)) -> 0 | L10: =IF(H10>0,ROUNDDOWN(H10,-1),0) -> 2400 | M10: =(D10-G10+J10)-(C10-F10) -> 2400
A11: Beiträge/Gebühren | C11: 0 | D11: 0 | E11: =D11-C11 -> 0 | F11: 0 | G11: 0 | H11: =F11-G11 -> 0 | I11: 0 | J11: =IF(H11<0,IF(I11>0,IF((H11*(-1))>I11,I11,H11*(-1)),0),0) -> 0 | K11: =IF(OR(J11>I11,H11+I11<0),MAKRO1(),ROUNDDOWN(I11-J11,-1)) -> 0 | L11: =IF(H11>0,ROUNDDOWN(H11,-1),0) -> 0 | M11: =(D11-G11+J11)-(C11-F11) -> 0
A12: Büromaterial und -ausstattung | C12: 0 | D12: 0 | E12: =D12-C12 -> 0 | F12: 500 | G12: 86.7 | H12: =F12-G12 -> 413.3 | I12: 250 | J12: =IF(H12<0,IF(I12>0,IF((H12*(-1))>I12,I12,H12*(-1)),0),0) -> 0 | K12: =IF(OR(J12>I12,H12+I12<0),MAKRO1(),ROUNDDOWN(I12-J12,-1)) -> 250 | L12: =IF(H12>0,ROUNDDOWN(H12,-1),0) -> 410 | M12: =(D12-G12+J12)-(C12-F12) -> 413.3
A13: Studienmaterial (z.B. Bautabellen, Laborkittel, etc.) | C13: 1000 | D13: 0 | E13: =D13-C13 -> -1000 | F13: 1000 | G13: 1633.28 | H13: =F13-G13 -> -633.28 | I13: 700 | J13: =IF(H13<0,IF(I13>0,IF((H13*(-1))>I13,I13,H13*(-1)),0),0) -> 633.28 | K13: =IF(OR(J13>I13,H13+I13<0),MAKRO1(),ROUNDDOWN(I13-J13,-1)) -> 60 | L13: =IF(H13>0,ROUNDDOWN(H13,-1),0) -> 0 | M13: =(D13-G13+J13)-(C13-F13) -> -1000
A14: Projekt "How to StuRa" | C14: 0 | D14: 0 | E14: 0 | F14: 9000 | G14: 0 | H14: =F14-G14 -> 9000 | I14: 0 | J14: =IF(H14<0,IF(I14>0,IF((H14*(-1))>I14,I14,H14*(-1)),0),0) -> 0 | K14: =IF(OR(J14>I14,H14+I14<0),MAKRO1(),ROUNDDOWN(I14-J14,-1)) -> 0 | L14: 9000 | M14: =(D14-G14+J14)-(C14-F14) -> 9000
A15: laufende Kosten für Druck, samt Nebenkosten | C15: 0 | D15: 0 | E15: =D15-C15 -> 0 | F15: 500 | G15: 209.79 | H15: =F15-G15 -> 290.21 | I15: 470 | J15: =IF(H15<0,IF(I15>0,IF((H15*(-1))>I15,I15,H15*(-1)),0),0) -> 0 | K15: =IF(OR(J15>I15,H15+I15<0),MAKRO1(),ROUNDDOWN(I15-J15,-1)) -> 470 | L15: =IF(H15>0,ROUNDDOWN(H15,-1),0) -> 290 | M15: =(D15-G15+J15)-(C15-F15) -> 290.21
A16: Gesamtsumme: | C16: =SUM(C3:C15) -> 1200 | D16: =SUM(D3:D15) -> 54 | E16: =SUM(E3:E15) -> -1146 | F16: =SUM(F3:F15) -> 29626 | G16: =SUM(G3:G15) -> 2096.96 | H16: =SUM(H3:H15) -> 27529.04 | I16: =SUM(I3:I15) -> 2680 | J16: =SUM(J3:J15) -> 633.28 | K16: =SUM(K3:K15) -> 2040 | L16: =SUM(L3:L15) -> 28150 | M16: =(D16-G16+J16)-(C16-F16) -> 27016.32
